[Event "*** SCC Grand Prix: Titled Tuesday Blitz"]
[Site "Chess.com"]
[Date "2020.07.07"]
[Round "10"]
[White "GigaQuparadze"]
[Black "JozefKneht"]
[Result "1-0"]
[WhiteElo "2888"]
[BlackElo "2510"]
[TimeControl "180+1"]
[EndTime "11:54:35 PDT"]
[Termination "GigaQuparadze won by resignation"]

1. e4 {[%clk 0:03:00.9]} 1... e5 {[%clk 0:02:59.6]} 2. Nf3 {[%clk 0:03:00.5]}
2... Nc6 {[%clk 0:02:59.8]} 3. Bb5 {[%clk 0:03:01]} 3... a6 {[%clk 0:03:00.1]}
4. Ba4 {[%clk 0:03:00.7]} 4... Nf6 {[%clk 0:03:00.4]} 5. Bxc6 {[%clk 0:03:00.8]}
5... dxc6 {[%clk 0:03:00]} 6. d3 {[%clk 0:03:01]} 6... Bd6 {[%clk 0:02:59.5]} 7.
Nbd2 {[%clk 0:03:01]} 7... c5 {[%clk 0:02:58.6]} 8. Nc4 {[%clk 0:03:01.1]} 8...
Nd7 {[%clk 0:02:55.5]} 9. b3 {[%clk 0:02:57.5]} 9... O-O {[%clk 0:02:54.8]} 10.
Bb2 {[%clk 0:02:57.1]} 10... Re8 {[%clk 0:02:55.3]} 11. O-O {[%clk 0:02:56.8]}
11... f6 {[%clk 0:02:45.3]} 12. a4 {[%clk 0:02:56.1]} 12... a5 {[%clk
0:02:38.5]} 13. Nh4 {[%clk 0:02:55.6]} 13... Nf8 {[%clk 0:02:36.6]} 14. Nxd6
{[%clk 0:02:55.2]} 14... Qxd6 {[%clk 0:02:33.4]} 15. Nf5 {[%clk 0:02:53.7]}
15... Bxf5 {[%clk 0:02:32.6]} 16. exf5 {[%clk 0:02:54.6]} 16... Rad8 {[%clk
0:02:29.2]} 17. Qf3 {[%clk 0:02:54.1]} 17... Qd5 {[%clk 0:02:28.7]} 18. Qxd5+
{[%clk 0:02:53.3]} 18... Rxd5 {[%clk 0:02:28.3]} 19. Rae1 {[%clk 0:02:53.8]}
19... Kf7 {[%clk 0:02:26.5]} 20. Re4 {[%clk 0:02:51.5]} 20... Re7 {[%clk
0:02:19.8]} 21. Rfe1 {[%clk 0:02:50.5]} 21... Red7 {[%clk 0:02:18.5]} 22. h4
{[%clk 0:02:45.6]} 22... g6 {[%clk 0:02:01.5]} 23. fxg6+ {[%clk 0:02:45.1]}
23... hxg6 {[%clk 0:01:58.5]} 24. f4 {[%clk 0:02:41.8]} 24... exf4 {[%clk
0:01:55.1]} 25. Rxf4 {[%clk 0:02:42.7]} 25... f5 {[%clk 0:01:53.4]} 26. g4
{[%clk 0:02:38.4]} 26... Ne6 {[%clk 0:01:51.3]} 27. Rf2 {[%clk 0:02:38.3]} 27...
Nd4 {[%clk 0:01:48.7]} 28. Kg2 {[%clk 0:02:34.6]} 28... Kg7 {[%clk 0:01:30]} 29.
c3 {[%clk 0:02:31.6]} 29... Nxb3 {[%clk 0:01:23.9]} 30. c4+ {[%clk 0:02:31.7]}
30... Rd4 {[%clk 0:01:23.5]} 31. gxf5 {[%clk 0:02:31.7]} 31... gxf5 {[%clk
0:01:21.3]} 32. Rxf5 {[%clk 0:02:30.9]} 32... Kg6 {[%clk 0:01:21.5]} 33. Rg5+
{[%clk 0:02:29.3]} 33... Kf6 {[%clk 0:01:21.4]} 1-0

[Event "*** SCC Grand Prix: Titled Tuesday Blitz"]
[Site "Chess.com"]
[Date "2020.07.07"]
[Round "10"]
[White "Ermito2020"]
[Black "francyIM"]
[Result "1-0"]
[WhiteElo "2474"]
[BlackElo "2598"]
[TimeControl "180+1"]
[EndTime "11:55:11 PDT"]
[Termination "Ermito2020 won by resignation"]

1. e4 {[%clk 0:03:00.9]} 1... e5 {[%clk 0:02:50.8]} 2. Nf3 {[%clk 0:03:00.4]}
2... Nc6 {[%clk 0:02:50.3]} 3. d4 {[%clk 0:03:00.7]} 3... exd4 {[%clk
0:02:50.3]} 4. Bc4 {[%clk 0:03:01.4]} 4... Bc5 {[%clk 0:02:39.8]} 5. c3 {[%clk
0:03:00.7]} 5... Nf6 {[%clk 0:02:39.5]} 6. e5 {[%clk 0:03:00.5]} 6... d5 {[%clk
0:02:39.3]} 7. Bb5 {[%clk 0:03:00.5]} 7... Ne4 {[%clk 0:02:39.6]} 8. cxd4 {[%clk
0:03:00.2]} 8... Bb6 {[%clk 0:02:38.9]} 9. h3 {[%clk 0:02:57.5]} 9... O-O {[%clk
0:02:36.7]} 10. O-O {[%clk 0:02:47.3]} 10... f6 {[%clk 0:02:34.5]} 11. Bxc6
{[%clk 0:02:43.2]} 11... bxc6 {[%clk 0:02:33.9]} 12. Be3 {[%clk 0:02:29.5]}
12... fxe5 {[%clk 0:02:29.1]} 13. Nxe5 {[%clk 0:02:29.1]} 13... Qf6 {[%clk
0:02:25]} 14. Nc3 {[%clk 0:02:24.4]} 14... Ba6 {[%clk 0:02:23.5]} 15. Nxe4
{[%clk 0:02:23.8]} 15... dxe4 {[%clk 0:02:23.9]} 16. Nd7 {[%clk 0:02:22.9]}
16... Qf7 {[%clk 0:02:22.2]} 17. Nxf8 {[%clk 0:02:20.7]} 17... Bxf1 {[%clk
0:02:22]} 18. Qxf1 {[%clk 0:02:17.2]} 18... Rxf8 {[%clk 0:02:20.8]} 19. b3
{[%clk 0:02:12.2]} 19... Qd5 {[%clk 0:02:16.5]} 20. Qc4 {[%clk 0:02:10.1]} 20...
Kf7 {[%clk 0:02:08.4]} 21. Rc1 {[%clk 0:02:08.8]} 21... Ke6 {[%clk 0:02:06.6]}
22. Qxc6+ {[%clk 0:02:08]} 22... Qxc6 {[%clk 0:02:07.5]} 23. Rxc6+ {[%clk
0:02:08.1]} 23... Kd5 {[%clk 0:02:08.4]} 24. Rc4 {[%clk 0:02:06.7]} 24... a5
{[%clk 0:02:07.1]} 25. Kf1 {[%clk 0:02:03.4]} 25... Rf6 {[%clk 0:02:07.4]} 26.
Ke2 {[%clk 0:01:59.2]} 26... Rc6 {[%clk 0:02:08.3]} 27. Rxc6 {[%clk 0:01:58.6]}
27... Kxc6 {[%clk 0:02:09.2]} 28. Kd2 {[%clk 0:01:44.6]} 28... Kd5 {[%clk
0:02:10.1]} 29. Kc3 {[%clk 0:01:44.3]} 29... c6 {[%clk 0:02:11]} 30. a4 {[%clk
0:01:43.8]} 30... Bd8 {[%clk 0:02:10.6]} 31. Bf4 {[%clk 0:01:38.9]} 31... Bf6
{[%clk 0:02:09.1]} 32. Be5 {[%clk 0:01:38.8]} 32... c5 {[%clk 0:01:53.3]} 33.
Bxf6 {[%clk 0:01:37.1]} 33... gxf6 {[%clk 0:01:54.2]} 34. dxc5 {[%clk
0:01:34.9]} 34... Kxc5 {[%clk 0:01:53.9]} 35. g4 {[%clk 0:01:34.3]} 35... h6
{[%clk 0:01:53.4]} 36. h4 {[%clk 0:01:34.1]} 36... Kd5 {[%clk 0:01:52.9]} 37. b4
{[%clk 0:01:34.2]} 1-0

[Event "*** SCC Grand Prix: Titled Tuesday Blitz"]
[Site "Chess.com"]
[Date "2020.07.07"]
[Round "10"]
[White "inegrepus"]
[Black "jonychess03"]
[Result "0-1"]
[WhiteElo "2177"]
[BlackElo "2313"]
[TimeControl "180+1"]
[EndTime "11:55:15 PDT"]
[Termination "jonychess03 won by resignation"]

1. d4 {[%clk 0:03:00.6]} 1... Nf6 {[%clk 0:02:59.4]} 2. c4 {[%clk 0:03:00.5]}
2... e6 {[%clk 0:02:59.5]} 3. g3 {[%clk 0:03:00.2]} 3... Bb4+ {[%clk 0:02:59.6]}
4. Bd2 {[%clk 0:03:00.5]} 4... Be7 {[%clk 0:03:00.5]} 5. Bg2 {[%clk 0:03:00.9]}
5... d5 {[%clk 0:03:00.5]} 6. Nf3 {[%clk 0:03:01.2]} 6... O-O {[%clk 0:03:00.7]}
7. O-O {[%clk 0:03:01.5]} 7... dxc4 {[%clk 0:02:59.9]} 8. Qc2 {[%clk 0:03:01.7]}
8... a6 {[%clk 0:03:00]} 9. Qxc4 {[%clk 0:03:00.8]} 9... b5 {[%clk 0:02:59.8]}
10. Qc2 {[%clk 0:03:01]} 10... Bb7 {[%clk 0:02:59.8]} 11. Ba5 {[%clk 0:03:00.5]}
11... Bd6 {[%clk 0:03:00.2]} 12. Nbd2 {[%clk 0:02:56.1]} 12... Nc6 {[%clk
0:03:00.1]} 13. Nb3 {[%clk 0:02:47.8]} 13... Nxa5 {[%clk 0:02:54.8]} 14. Nxa5
{[%clk 0:02:47.6]} 14... Be4 {[%clk 0:02:55.3]} 15. Qc3 {[%clk 0:02:43.9]} 15...
Rc8 {[%clk 0:02:48.8]} 16. Nc6 {[%clk 0:02:41.6]} 16... Qe8 {[%clk 0:02:34.4]}
17. Rac1 {[%clk 0:02:42]} 17... Nd5 {[%clk 0:02:25.8]} 18. Qd2 {[%clk
0:02:30.1]} 18... Nb6 {[%clk 0:02:18.5]} 19. Nfe5 {[%clk 0:02:27.4]} 19... Bxg2
{[%clk 0:02:13.3]} 20. Kxg2 {[%clk 0:02:28.3]} 20... Nc4 {[%clk 0:02:10.3]} 21.
Nxc4 {[%clk 0:02:26.4]} 21... Qxc6+ {[%clk 0:02:09.8]} 22. d5 {[%clk 0:02:23.2]}
22... exd5 {[%clk 0:01:58.5]} 23. Na5 {[%clk 0:02:15.1]} 23... Qe8 {[%clk
0:01:34.5]} 24. e3 {[%clk 0:01:51.3]} 24... Qe4+ {[%clk 0:01:31.5]} 25. Kg1
{[%clk 0:01:50.6]} 25... Bb4 {[%clk 0:01:19.2]} 0-1

[Event "*** SCC Grand Prix: Titled Tuesday Blitz"]
[Site "Chess.com"]
[Date "2020.07.07"]
[Round "10"]
[White "QuintilianoR"]
[Black "Zq1"]
[Result "1-0"]
[WhiteElo "2654"]
[BlackElo "2527"]
[TimeControl "180+1"]
[EndTime "11:55:24 PDT"]
[Termination "QuintilianoR won by resignation"]

1. Nf3 {[%clk 0:03:00.9]} 1... Nf6 {[%clk 0:02:59.3]} 2. c4 {[%clk 0:03:01]}
2... e6 {[%clk 0:02:57.7]} 3. Nc3 {[%clk 0:03:01.2]} 3... d5 {[%clk 0:02:57.5]}
4. d4 {[%clk 0:03:01.3]} 4... Be7 {[%clk 0:02:57.7]} 5. Bf4 {[%clk 0:03:01.3]}
5... O-O {[%clk 0:02:56.9]} 6. e3 {[%clk 0:03:01.6]} 6... c5 {[%clk 0:02:55.8]}
7. dxc5 {[%clk 0:03:00.6]} 7... Bxc5 {[%clk 0:02:54.9]} 8. Qc2 {[%clk
0:03:00.8]} 8... Nc6 {[%clk 0:02:51.2]} 9. a3 {[%clk 0:03:00.5]} 9... dxc4
{[%clk 0:02:44.6]} 10. Bxc4 {[%clk 0:02:59]} 10... Qe7 {[%clk 0:02:44]} 11. O-O
{[%clk 0:02:56]} 11... h6 {[%clk 0:02:42.6]} 12. b4 {[%clk 0:02:51.4]} 12... Bb6
{[%clk 0:02:41.6]} 13. Rfd1 {[%clk 0:02:29.7]} 13... e5 {[%clk 0:02:40.5]} 14.
Bxh6 {[%clk 0:02:20]} 14... e4 {[%clk 0:02:18.2]} 15. Nh4 {[%clk 0:01:44.3]}
15... Ne5 {[%clk 0:02:08.2]} 16. Bg5 {[%clk 0:01:37.2]} 16... Nxc4 {[%clk
0:02:04.3]} 17. Nd5 {[%clk 0:01:35.8]} 17... Qe5 {[%clk 0:01:59.4]} 18. Bxf6
{[%clk 0:01:31.4]} 18... gxf6 {[%clk 0:01:45]} 19. Qxc4 {[%clk 0:01:31.1]} 19...
Be6 {[%clk 0:01:44.9]} 20. Qxe4 {[%clk 0:01:30.5]} 20... Rfd8 {[%clk 0:01:19.7]}
21. Ne7+ {[%clk 0:01:15]} 21... Kf8 {[%clk 0:01:13]} 22. Neg6+ {[%clk
0:01:12.1]} 1-0

[Event "*** SCC Grand Prix: Titled Tuesday Blitz"]
[Site "Chess.com"]
[Date "2020.07.07"]
[Round "10"]
[White "BJthechessgod"]
[Black "HanSchut"]
[Result "1-0"]
[WhiteElo "2355"]
[BlackElo "2307"]
[TimeControl "180+1"]
[EndTime "11:55:34 PDT"]
[Termination "BJthechessgod won by resignation"]

1. e4 {[%clk 0:03:00.9]} 1... c5 {[%clk 0:02:59.7]} 2. Nf3 {[%clk 0:03:00.7]}
2... d6 {[%clk 0:03:00]} 3. Bb5+ {[%clk 0:02:58]} 3... Nd7 {[%clk 0:03:00.9]} 4.
Ba4 {[%clk 0:02:57.8]} 4... Nf6 {[%clk 0:02:58.7]} 5. O-O {[%clk 0:02:56.3]}
5... Nxe4 {[%clk 0:02:52.9]} 6. Re1 {[%clk 0:02:53.6]} 6... d5 {[%clk
0:02:50.3]} 7. c4 {[%clk 0:02:40.7]} 7... Nf6 {[%clk 0:02:44]} 8. d4 {[%clk
0:02:36.4]} 8... e6 {[%clk 0:02:40.7]} 9. cxd5 {[%clk 0:02:29.8]} 9... Nxd5
{[%clk 0:02:40.8]} 10. dxc5 {[%clk 0:02:30.4]} 10... Bxc5 {[%clk 0:02:39]} 11.
Qxd5 {[%clk 0:02:23.4]} 11... Bb4 {[%clk 0:02:27.2]} 12. Bd2 {[%clk 0:02:18.1]}
12... O-O {[%clk 0:02:19.5]} 13. Qg5 {[%clk 0:02:09]} 13... Be7 {[%clk
0:02:18.6]} 14. Qg3 {[%clk 0:02:01.7]} 14... Nc5 {[%clk 0:02:13.8]} 15. Bc2
{[%clk 0:02:00.8]} 15... Bd7 {[%clk 0:01:53.9]} 16. Nc3 {[%clk 0:01:58.9]} 16...
Rc8 {[%clk 0:01:49]} 17. Rad1 {[%clk 0:01:58]} 17... Qb6 {[%clk 0:01:47.3]} 18.
Qh3 {[%clk 0:01:27.9]} 18... g6 {[%clk 0:01:43.1]} 19. Bg5 {[%clk 0:01:27.4]}
19... f6 {[%clk 0:01:24.5]} 20. Bh6 {[%clk 0:01:19.3]} 20... Rf7 {[%clk
0:01:11]} 21. Bc1 {[%clk 0:01:18.6]} 21... e5 {[%clk 0:01:10.2]} 22. Rxd7 {[%clk
0:01:11.6]} 1-0

[Event "*** SCC Grand Prix: Titled Tuesday Blitz"]
[Site "Chess.com"]
[Date "2020.07.07"]
[Round "10"]
[White "ClassyEl"]
[Black "diablanni"]
[Result "1-0"]
[WhiteElo "2460"]
[BlackElo "2308"]
[TimeControl "180+1"]
[EndTime "11:55:54 PDT"]
[Termination "ClassyEl won by resignation"]

1. d4 {[%clk 0:03:00.9]} 1... Nf6 {[%clk 0:02:58.2]} 2. Bg5 {[%clk 0:03:00]}
2... Ne4 {[%clk 0:02:57.1]} 3. Bf4 {[%clk 0:02:59.9]} 3... d5 {[%clk 0:02:56.2]}
4. e3 {[%clk 0:03:00]} 4... c5 {[%clk 0:02:18.5]} 5. Bd3 {[%clk 0:02:59.2]} 5...
cxd4 {[%clk 0:02:15.1]} 6. exd4 {[%clk 0:02:59.1]} 6... Nc6 {[%clk 0:02:08.5]}
7. Bxe4 {[%clk 0:02:58.9]} 7... dxe4 {[%clk 0:02:00.9]} 8. d5 {[%clk 0:02:59.3]}
8... e5 {[%clk 0:01:58]} 9. Bg3 {[%clk 0:02:56.5]} 9... Ne7 {[%clk 0:01:55.5]}
10. Nc3 {[%clk 0:02:55.9]} 10... Ng6 {[%clk 0:01:52.9]} 11. h4 {[%clk
0:02:53.2]} 11... Bb4 {[%clk 0:01:40.9]} 12. Ne2 {[%clk 0:02:47.8]} 12... Bg4
{[%clk 0:01:28.3]} 13. h5 {[%clk 0:02:42.6]} 13... Nf4 {[%clk 0:01:27.7]} 14.
Bxf4 {[%clk 0:02:42.4]} 14... exf4 {[%clk 0:01:26.9]} 15. Qd4 {[%clk 0:02:42.3]}
15... Qe7 {[%clk 0:01:14.8]} 16. Qxg7 {[%clk 0:02:20.9]} 16... Bxe2 {[%clk
0:01:04.1]} 17. Qxh8+ {[%clk 0:02:20.9]} 17... Kd7 {[%clk 0:01:04.3]} 18. Qxa8
{[%clk 0:02:17.4]} 18... Ba6 {[%clk 0:00:54.6]} 19. Qh8 {[%clk 0:02:09.9]} 19...
f6 {[%clk 0:00:48.2]} 20. d6 {[%clk 0:01:57.7]} 20... Qf7 {[%clk 0:00:33.9]} 21.
h6 {[%clk 0:01:38.5]} 21... Qc4 {[%clk 0:00:32.5]} 22. Qg7+ {[%clk 0:01:38.1]}
22... Ke6 {[%clk 0:00:28.4]} 23. Qg8+ {[%clk 0:01:30.6]} 1-0

[Event "*** SCC Grand Prix: Titled Tuesday Blitz"]
[Site "Chess.com"]
[Date "2020.07.07"]
[Round "10"]
[White "MestreSoares"]
[Black "YellowJacek"]
[Result "1-0"]
[WhiteElo "2141"]
[BlackElo "2243"]
[TimeControl "180+1"]
[EndTime "11:55:56 PDT"]
[Termination "MestreSoares won by resignation"]

1. Nf3 {[%clk 0:03:00.9]} 1... c5 {[%clk 0:02:58.9]} 2. b3 {[%clk 0:03:01.1]}
2... Nc6 {[%clk 0:02:57.5]} 3. Bb2 {[%clk 0:03:00.3]} 3... Nf6 {[%clk
0:02:57.4]} 4. e3 {[%clk 0:03:00]} 4... g6 {[%clk 0:02:57.3]} 5. Be2 {[%clk
0:02:59.2]} 5... Bg7 {[%clk 0:02:57.1]} 6. O-O {[%clk 0:02:58.9]} 6... O-O
{[%clk 0:02:57.2]} 7. d4 {[%clk 0:02:58.4]} 7... cxd4 {[%clk 0:02:54.8]} 8. Nxd4
{[%clk 0:02:57.7]} 8... d5 {[%clk 0:02:52.3]} 9. c4 {[%clk 0:02:55.4]} 9... dxc4
{[%clk 0:02:41]} 10. Nxc6 {[%clk 0:02:54.4]} 10... bxc6 {[%clk 0:02:39.3]} 11.
Bxc4 {[%clk 0:02:52.4]} 11... Qc7 {[%clk 0:02:35]} 12. Nc3 {[%clk 0:02:50.5]}
12... Rd8 {[%clk 0:02:31.5]} 13. Qc1 {[%clk 0:02:50.2]} 13... Bf5 {[%clk
0:02:25.3]} 14. Ne2 {[%clk 0:02:32]} 14... e5 {[%clk 0:02:11.1]} 15. Ng3 {[%clk
0:02:29.8]} 15... Bc8 {[%clk 0:01:56.9]} 16. Rd1 {[%clk 0:02:25.9]} 16... Bb7
{[%clk 0:01:53.1]} 17. Qc2 {[%clk 0:02:23.9]} 17... Qe7 {[%clk 0:01:48.7]} 18.
Rxd8+ {[%clk 0:02:16.9]} 18... Rxd8 {[%clk 0:01:46.7]} 19. Rd1 {[%clk
0:02:17.2]} 19... Nd5 {[%clk 0:01:46.2]} 20. a3 {[%clk 0:01:51.6]} 20... h5
{[%clk 0:01:44.8]} 21. e4 {[%clk 0:01:44.5]} 21... Nf4 {[%clk 0:01:43.6]} 22.
Rxd8+ {[%clk 0:01:34.8]} 22... Qxd8 {[%clk 0:01:42.9]} 23. Ne2 {[%clk
0:01:34.7]} 23... Qg5 {[%clk 0:01:29]} 24. Nxf4 {[%clk 0:01:31.1]} 24... exf4
{[%clk 0:01:25.5]} 25. f3 {[%clk 0:01:28.6]} 25... Qc5+ {[%clk 0:01:21.5]} 26.
Kf1 {[%clk 0:01:21.7]} 26... h4 {[%clk 0:01:04.9]} 27. Bxf7+ {[%clk 0:01:07.9]}
1-0

[Event "*** SCC Grand Prix: Titled Tuesday Blitz"]
[Site "Chess.com"]
[Date "2020.07.07"]
[Round "10"]
[White "AwareIdea"]
[Black "abykhovsky"]
[Result "0-1"]
[WhiteElo "2477"]
[BlackElo "2678"]
[TimeControl "180+1"]
[EndTime "11:56:05 PDT"]
[Termination "abykhovsky won by checkmate"]

1. d4 {[%clk 0:03:00.9]} 1... Nf6 {[%clk 0:02:56]} 2. c4 {[%clk 0:03:00.8]} 2...
c5 {[%clk 0:02:56.9]} 3. d5 {[%clk 0:02:59.5]} 3... b5 {[%clk 0:02:53.1]} 4.
cxb5 {[%clk 0:03:00.4]} 4... a6 {[%clk 0:02:52.9]} 5. f3 {[%clk 0:03:00.7]} 5...
axb5 {[%clk 0:02:51.5]} 6. e4 {[%clk 0:03:01]} 6... e6 {[%clk 0:02:49.1]} 7.
Bxb5 {[%clk 0:02:52.2]} 7... c4 {[%clk 0:02:47.3]} 8. dxe6 {[%clk 0:02:42.2]}
8... fxe6 {[%clk 0:02:46.1]} 9. Nc3 {[%clk 0:02:30]} 9... Qb6 {[%clk 0:02:29.5]}
10. Nge2 {[%clk 0:02:25]} 10... Nc6 {[%clk 0:02:26.3]} 11. Bxc4 {[%clk
0:02:17.5]} 11... Bc5 {[%clk 0:02:23]} 12. Bf4 {[%clk 0:01:36.2]} 12... O-O
{[%clk 0:02:20.9]} 13. Qd2 {[%clk 0:01:28.5]} 13... Kh8 {[%clk 0:02:17.4]} 14.
Rd1 {[%clk 0:01:05.5]} 14... d5 {[%clk 0:02:00.2]} 15. exd5 {[%clk 0:00:57.5]}
15... exd5 {[%clk 0:02:00.1]} 16. Nxd5 {[%clk 0:00:55.9]} 16... Nxd5 {[%clk
0:01:59.5]} 17. Bxd5 {[%clk 0:00:56.8]} 17... Ba6 {[%clk 0:01:58]} 18. Nc3
{[%clk 0:00:31]} 18... Rae8+ {[%clk 0:01:51.6]} 19. Be4 {[%clk 0:00:28.3]} 19...
Nb4 {[%clk 0:01:48.4]} 20. Qc1 {[%clk 0:00:08.8]} 20... Bf2+ {[%clk 0:01:45.9]}
21. Kd2 {[%clk 0:00:06.1]} 21... Qd4+ {[%clk 0:01:45]} 22. Bd3 {[%clk
0:00:04.4]} 22... Qxd3# {[%clk 0:01:44.2]} 0-1

[Event "*** SCC Grand Prix: Titled Tuesday Blitz"]
[Site "Chess.com"]
[Date "2020.07.07"]
[Round "10"]
[White "grandcoach"]
[Black "HarryCun"]
[Result "1-0"]
[WhiteElo "2118"]
[BlackElo "2160"]
[TimeControl "180+1"]
[EndTime "11:56:05 PDT"]
[Termination "grandcoach won by resignation"]

1. e4 {[%clk 0:03:00.9]} 1... c6 {[%clk 0:01:18.9]} 2. d4 {[%clk 0:02:58]} 2...
d5 {[%clk 0:01:19.8]} 3. e5 {[%clk 0:02:58.5]} 3... Bf5 {[%clk 0:01:16.9]} 4.
Nf3 {[%clk 0:02:58.8]} 4... e6 {[%clk 0:01:17.5]} 5. Be2 {[%clk 0:02:59.1]} 5...
Nd7 {[%clk 0:01:17.3]} 6. O-O {[%clk 0:02:59.5]} 6... Ne7 {[%clk 0:01:18.2]} 7.
Nbd2 {[%clk 0:02:59.4]} 7... c5 {[%clk 0:01:18.6]} 8. c4 {[%clk 0:02:57.8]} 8...
Nc6 {[%clk 0:01:19.1]} 9. cxd5 {[%clk 0:02:56.8]} 9... exd5 {[%clk 0:01:20]} 10.
Re1 {[%clk 0:02:14.5]} 10... cxd4 {[%clk 0:01:17.9]} 11. Nb3 {[%clk 0:02:09.1]}
11... d3 {[%clk 0:01:17]} 12. Bxd3 {[%clk 0:02:08.3]} 12... Bxd3 {[%clk
0:01:17.1]} 13. Qxd3 {[%clk 0:02:08.2]} 13... Nc5 {[%clk 0:01:17.7]} 14. Qb5
{[%clk 0:01:47.7]} 14... Nxb3 {[%clk 0:01:14]} 15. axb3 {[%clk 0:01:48.1]} 15...
Qc7 {[%clk 0:01:11]} 16. e6 {[%clk 0:01:33.5]} 16... f6 {[%clk 0:01:00]} 17. Bf4
{[%clk 0:01:25.7]} 17... Bd6 {[%clk 0:00:52.3]} 18. Bxd6 {[%clk 0:01:19]} 18...
Qxd6 {[%clk 0:00:53.2]} 19. Qxb7 {[%clk 0:01:16.2]} 19... Rb8 {[%clk 0:00:52.1]}
20. Qf7+ {[%clk 0:01:10.6]} 20... Kd8 {[%clk 0:00:51]} 21. Qxg7 {[%clk
0:01:04.4]} 21... Rf8 {[%clk 0:00:47.9]} 22. e7+ {[%clk 0:01:02.1]} 22... Nxe7
{[%clk 0:00:44.3]} 1-0

[Event "*** SCC Grand Prix: Titled Tuesday Blitz"]
[Site "Chess.com"]
[Date "2020.07.07"]
[Round "10"]
[White "Khazieva_Elza"]
[Black "GAusal"]
[Result "1-0"]
[WhiteElo "2279"]
[BlackElo "2081"]
[TimeControl "180+1"]
[EndTime "11:56:06 PDT"]
[Termination "Khazieva_Elza won by checkmate"]

1. e4 {[%clk 0:03:00.6]} 1... e5 {[%clk 0:02:59.2]} 2. Nf3 {[%clk 0:03:00.2]}
2... f5 {[%clk 0:02:58.4]} 3. d3 {[%clk 0:02:59.1]} 3... d6 {[%clk 0:02:55.6]}
4. Nc3 {[%clk 0:02:52.9]} 4... Nc6 {[%clk 0:02:55.7]} 5. g3 {[%clk 0:02:27.8]}
5... Nf6 {[%clk 0:02:52.4]} 6. Bg2 {[%clk 0:02:27.5]} 6... Be7 {[%clk
0:02:51.7]} 7. exf5 {[%clk 0:02:19]} 7... Bxf5 {[%clk 0:02:48.2]} 8. d4 {[%clk
0:02:19.4]} 8... e4 {[%clk 0:02:43.5]} 9. Nh4 {[%clk 0:02:17.6]} 9... Bg4 {[%clk
0:02:39.1]} 10. f3 {[%clk 0:02:10]} 10... exf3 {[%clk 0:02:31.8]} 11. Bxf3
{[%clk 0:02:08.7]} 11... Qd7 {[%clk 0:02:27.9]} 12. O-O {[%clk 0:01:51.9]} 12...
O-O {[%clk 0:02:22.7]} 13. Bg5 {[%clk 0:01:29.9]} 13... d5 {[%clk 0:02:22.7]}
14. Bxf6 {[%clk 0:01:21.7]} 14... Bxf3 {[%clk 0:02:18.5]} 15. Qxf3 {[%clk
0:01:17.6]} 15... Bxf6 {[%clk 0:02:13.9]} 16. Qxd5+ {[%clk 0:01:17.6]} 16...
Qxd5 {[%clk 0:02:10.4]} 17. Nxd5 {[%clk 0:01:18.5]} 17... Bxd4+ {[%clk 0:02:07]}
18. Kg2 {[%clk 0:01:18.6]} 18... Rae8 {[%clk 0:01:59.8]} 19. c3 {[%clk
0:00:52.2]} 19... Re2+ {[%clk 0:01:55.1]} 20. Kh1 {[%clk 0:00:36.6]} 20... Be5
{[%clk 0:01:44.2]} 21. Rxf8+ {[%clk 0:00:34]} 21... Kxf8 {[%clk 0:01:40.8]} 22.
Rf1+ {[%clk 0:00:34.6]} 22... Kg8 {[%clk 0:01:34.1]} 23. Nf5 {[%clk 0:00:28.9]}
23... Rxb2 {[%clk 0:01:32.1]} 24. Nfe7+ {[%clk 0:00:28.6]} 24... Nxe7 {[%clk
0:01:26.5]} 25. Nxe7+ {[%clk 0:00:29.5]} 25... Kh8 {[%clk 0:01:23.6]} 26. Rf8#
{[%clk 0:00:30.4]} 1-0

[Event "*** SCC Grand Prix: Titled Tuesday Blitz"]
[Site "Chess.com"]
[Date "2020.07.07"]
[Round "10"]
[White "VladaSviridova"]
[Black "gagtemp"]
[Result "1/2-1/2"]
[WhiteElo "2122"]
[BlackElo "1910"]
[TimeControl "180+1"]
[EndTime "11:56:10 PDT"]
[Termination "Game drawn by repetition"]

1. d4 {[%clk 0:03:00.5]} 1... d5 {[%clk 0:03:00.5]} 2. c4 {[%clk 0:02:59.9]}
2... e6 {[%clk 0:03:00.8]} 3. Nf3 {[%clk 0:02:59.9]} 3... c5 {[%clk 0:03:00.8]}
4. cxd5 {[%clk 0:02:59.3]} 4... exd5 {[%clk 0:03:00.5]} 5. g3 {[%clk 0:02:59.7]}
5... Nc6 {[%clk 0:03:00.5]} 6. Bg2 {[%clk 0:02:59.9]} 6... Nf6 {[%clk
0:03:01.1]} 7. O-O {[%clk 0:02:59.9]} 7... Be7 {[%clk 0:03:01.7]} 8. Nc3 {[%clk
0:03:00.1]} 8... O-O {[%clk 0:03:00.4]} 9. dxc5 {[%clk 0:03:00.2]} 9... Bxc5
{[%clk 0:02:58.7]} 10. a3 {[%clk 0:03:00.5]} 10... d4 {[%clk 0:02:48.6]} 11. Na4
{[%clk 0:02:58.7]} 11... Be7 {[%clk 0:02:43]} 12. b4 {[%clk 0:02:48.5]} 12...
Bg4 {[%clk 0:02:29.3]} 13. h3 {[%clk 0:02:40.9]} 13... Bxf3 {[%clk 0:02:08.4]}
14. Bxf3 {[%clk 0:02:41]} 14... Rc8 {[%clk 0:02:07.8]} 15. Nb2 {[%clk
0:02:36.2]} 15... Ne5 {[%clk 0:02:02.9]} 16. Bg2 {[%clk 0:02:36.1]} 16... b6
{[%clk 0:01:56.2]} 17. Bf4 {[%clk 0:02:35.9]} 17... Nc4 {[%clk 0:01:52.7]} 18.
Nxc4 {[%clk 0:02:33.6]} 18... Rxc4 {[%clk 0:01:52]} 19. Rc1 {[%clk 0:02:32]}
19... Rxc1 {[%clk 0:01:51.1]} 20. Qxc1 {[%clk 0:02:32.3]} 20... Nd5 {[%clk
0:01:48.3]} 21. Bxd5 {[%clk 0:02:20.6]} 21... Qxd5 {[%clk 0:01:47.8]} 22. Qc7
{[%clk 0:02:19.5]} 22... Bf6 {[%clk 0:01:26]} 23. Rd1 {[%clk 0:02:12.7]} 23...
Qa2 {[%clk 0:01:14.3]} 24. Qxa7 {[%clk 0:01:59.7]} 24... Qxe2 {[%clk 0:01:13.1]}
25. Rf1 {[%clk 0:01:53.8]} 25... d3 {[%clk 0:01:10.6]} 26. Qxb6 {[%clk
0:01:52.6]} 26... d2 {[%clk 0:01:05.9]} 27. Bxd2 {[%clk 0:01:43.3]} 27... Qxd2
{[%clk 0:01:05.4]} 28. a4 {[%clk 0:01:41.2]} 28... Bd4 {[%clk 0:01:01.5]} 29.
Qb7 {[%clk 0:01:39.4]} 29... h6 {[%clk 0:00:57.9]} 30. a5 {[%clk 0:01:37.9]}
30... Re8 {[%clk 0:00:57.8]} 31. a6 {[%clk 0:01:36.5]} 31... Re1 {[%clk
0:00:57.1]} 32. Qc8+ {[%clk 0:01:31.7]} 32... Kh7 {[%clk 0:00:54.6]} 33. Qf5+
{[%clk 0:01:31.6]} 33... Kg8 {[%clk 0:00:49.4]} 34. Qc8+ {[%clk 0:01:31.4]}
34... Kh7 {[%clk 0:00:49.2]} 35. Qf5+ {[%clk 0:01:27.8]} 35... Kg8 {[%clk
0:00:49]} 36. Qc8+ {[%clk 0:01:26.6]} 1/2-1/2